Cogmind - Beta 16.1 @@@ ROGUE MODE // 2026.03.03 @ 15:02:26 // Winter2019/RPGLIKE Player: badjay Result: Destroyed by Explosive Trap Performance ------------- Evolutions (2) 1000 Regions Visited (6) 1200 Robots Destroyed (82) 410 Value Destroyed (1950) 1950 Prototype IDs (10) 200 Alien Tech Used (0) 0 Bonus (54) 54 TOTAL SCORE: 4814 Bonus ------- High Alert Combat Kills 54 Cogmind --------- Core Integrity 0/600 Matter 299/300 Energy 278/280 System Corruption 1% Temperature Cool (6) Movement Flying (29) Location -8/Storage Parts ------- > --- POWER (1) -------- Cooled Ion Engine > --- PROPULSION (3) --- Cesium-ion Thruster Improved VTOL Module Improved VTOL Module > --- UTILITY (5) ------ Seismic Detector Improved Melee Analysis Suite Improved Melee Analysis Suite Force Booster Reaction Control System > --- WEAPON (5) ------- Flail Flail Flail Great Maul Powered Hammer > --- INVENTORY (1) ---- Cesium-ion Thruster Peak State ------------ > --- POWER ------------ Improved Ion Engine > --- PROPULSION ------- Improved VTOL Module Improved VTOL Module Xenon Bombardment Thruster > --- UTILITY ---------- Seismic Detector Improved Melee Analysis Suite Improved Melee Analysis Suite Force Booster Reaction Control System > --- WEAPON ----------- Flail Flail Flail Great Maul Powered Hammer > --- INVENTORY -------- Cesium-ion Thruster [Rating: 43] Favorites ----------- Power Cooled Ion Engine Engine Cooled Ion Engine Propulsion Cesium-ion Thruster Flight Unit Cesium-ion Thruster Utility Seismic Detector Device Seismic Detector Processor Improved Melee Analysis Suite Weapon Hammer Impact Weapon Hammer Slashing Weapon Makeshift Sword Piercing Weapon Spear Build | -11 -10 -10 -9 -9 -8 -8 ------- Run | Yrd Mat Min Mat Min Mat Sto Slots Evolved 10 | . . . 6 1 1 2 Power . | . . . . . . . Propulsion 2 | . . . 2 . . . Utility 4 | . . . . 1 1 2 Weapon 4 | . . . 4 . . . Parts Attached 38 | . 2 2 14 4 11 5 Power 5 | . . . 2 . 2 1 Engine 5 | . . . 2 . 2 1 Core . | . . . . . . . Reactor . | . . . . . . . Propulsion 11 | . . 1 7 1 . 2 Treads . | . . . . . . . Leg . | . . . . . . . Wheel . | . . . . . . . Hover . | . . . . . . . Flight 11 | . . 1 7 1 . 2 Utility 6 | . 1 1 . 1 1 2 Device 4 | . 1 1 . . 1 1 Storage . | . . . . . . . Processor 2 | . . . . 1 . 1 Hackware . | . . . . . . . Protection . | . . . . . . . Artifact . | . . . . . . . Weapon 16 | . 1 . 5 2 8 . Energy Gun . | . . . . . . . Energy Cannon . | . . . . . . . Ballistic Gun . | . . . . . . . Ballistic Cannon . | . . . . . . . Launcher . | . . . . . . . Special Weapon . | . . . . . . . Impact Weapon 11 | . 1 . 5 1 4 . Slashing Weapon 1 | . . . . 1 . . Piercing Weapon 4 | . . . . . 4 . Special Melee Weapon . | . . . . . . . Unidentified Prototypes 2 | . . 1 . . . 1 Parts Lost 2 | . . . 1 . 1 . Power 1 | . . . . . 1 . Propulsion 1 | . . . 1 . . . Utility . | . . . . . . . Weapon . | . . . . . . . Highest Loss Streak 1 | . . . 1 . 1 . To Critical Strikes . | . . . . . . . Average Backups . | . . . . . . . Power . | . . . . . . . Propulsion . | . . . . . . . Utility . | . . . . . . . Weapon . | . . . . . . . Tool/Special . | . . . . . . . Unused Backups . | . . . . . . . Power . | . . . . . . . Propulsion . | . . . . . . . Utility . | . . . . . . . Weapon . | . . . . . . . Tool/Special . | . . . . . . . Average Slot Usage (%) 78 | . 40 62 87 100 99 100 Engine 4 | . . . 6 9 7 7 Flight 18 | . . 12 25 27 25 22 Device 17 | . 20 25 16 9 15 19 Processor 2 | . . . . 7 8 12 Impact Weapon 29 | . 19 25 37 42 22 36 Piercing Weapon 3 | . . . . . 17 . Peak Build Rating 43 | . 2 11 19 30 42 43 Average Rating 14 | . 1 2 9 25 37 39 On Entrance 12 | . . 2 3 19 30 34 Avg Prop Armor Cover (%) . | . . . . . . . Naked Turns 93 | . 93 . . . . . Heaviest Build 28 | . 3 3 20 21 26 28 Greatest Support 31 | 3 3 4 20 21 28 31 Greatest Overweight (x) 1 | . . . . . . 1 Average Overweight (x) . | . . . . . . . Largest Inventory Capacity 1 | . . . . 1 1 1 Average Capacity . | . . . . . 1 1 Most Carried 1 | . . . . 1 1 1 Average Carried . | . . . . . . . Final Capacity 1 | . . . . 1 1 1 Final Carried 1 | . . . . 1 1 1 Class Distribution -------------------- 46% | Mutant 39% | Sprinter 8% | Gladiator 4% | Scientist-Sprinter Dominant Class ---------------- Mutant | -10/Materials Mutant | -10/Mines Sprinter | -9/Materials Sprinter | -9/Mines Sprinter | -8/Materials Scientist-Sprinter | -8/Storage Resources | -11 -10 -10 -9 -9 -8 -8 ----------- Run | Yrd Mat Min Mat Min Mat Sto Matter Collected 625 | 200 20 30 130 44 142 59 Remotely . | . . . . . . . Salvage Created 2892 | . . 186 1453 25 1091 137 Parts 91 | . . 9 40 3 38 1 Haulers Intercepted 14 | . . . 6 . 6 2 Recyclers Shooed . | . . . . . . . Parts Field Recycled . | . . . . . . . Retrieved Matter . | . . . . . . . Parts Self-Destructed . | . . . . . . . Prevented . | . . . . . . . Parts Restored . | . . . . . . . Kills | -11 -10 -10 -9 -9 -8 -8 ------- Run | Yrd Mat Min Mat Min Mat Sto Combat Hostiles Destroyed 58 | . . 7 25 6 19 1 Melee 37 | . . 3 15 4 14 1 Classes Destroyed 8 | . . 2 5 . 1 . Hauler 14 | . . . 6 . 6 2 Recycler 2 | . . . 2 . . . Watcher 8 | . . . 3 . 5 . Swarmer 23 | . . 3 6 6 8 . Grunt 20 | . . 4 11 . 4 1 Duelist 1 | . . . 1 . . . Sentry 12 | . . . 7 . 5 . Hunter 2 | . . . . . 2 . Best Kill Streak 10 | . . 3 10 8 7 3 Combat Bots Only 6 | . . 3 6 3 5 1 Max Kills in Single Turn 2 | . . 1 1 1 2 1 Gunslinging . | . . . . . . . Exploded . | . . . . . . . Melee 2 | . . 1 1 1 2 1 Uniques/NPCs Destroyed . | . . . . . . . Combat | -11 -10 -10 -9 -9 -8 -8 -------- Run | Yrd Mat Min Mat Min Mat Sto Hostile Shots Fired 257 | . 7 42 105 36 65 2 Missed 94 | . 6 11 38 14 23 2 Hits 163 | . 1 31 67 22 42 . Melee 4 | . . . 4 . . . Projectile 159 | . 1 31 63 22 42 . Critical Strikes 5 | . . . 4 . 1 . Damage Taken 2020 | . 11 316 840 176 631 46 Core 1713 | . 11 292 725 140 509 36 Absorbed by Shields . | . . . . . . . Redirected to Core 964 | . . 80 385 105 358 36 Core Remaining (%) 65 | 100 . 71 . 26 . . Volleys Fired . | . . . . . . . Largest . | . . . . . . . Hottest . | . . . . . . . Shots Fired . | . . . . . . . Gun . | . . . . . . . Cannon . | . . . . . . . Launcher . | . . . . . . . Special . | . . . . . . . Kinetic . | . . . . . . . Thermal . | . . . . . . . Explosive . | . . . . . . . Electromagnetic . | . . . . . . . Robot Hit Streak . | . . . . . . . Robot Miss Streak . | . . . . . . . Penetration Max . | . . . . . . . Secondary Targets . | . . . . . . . Shots Hit Robots 183 | . . 15 87 11 63 7 Core Hits 38 | . . 3 15 . 19 1 Critical Kills 5 | . . 2 2 . 1 . Critical Parts Destroyed 33 | . . 3 17 3 9 1 Critical Strikes 40 | . . 5 20 3 11 1 Smash 39 | . . 5 20 3 10 1 Impale 1 | . . . . . 1 . Melee Attacks 261 | . 1 23 111 21 93 12 Impact 222 | . 1 23 111 21 54 12 Slashing 1 | . . . . . 1 . Piercing 38 | . . . . . 38 . Sneak Attacks 34 | . . . 15 1 14 4 Combat Hostiles 10 | . . . 3 1 6 . Follow-up Attacks 50 | . . . 24 1 22 3 Damage Inflicted 8131 | . . 352 2964 518 3712 585 Guns . | . . . . . . . Cannons . | . . . . . . . Explosions . | . . . . . . . Melee 8131 | . . 352 2964 518 3712 585 Ramming . | . . . . . . . Kinetic . | . . . . . . . Thermal . | . . . . . . . Explosive . | . . . . . . . Electromagnetic . | . . . . . . . Impact 6961 | . . 352 2964 518 2542 585 Slashing 80 | . . . . . 80 . Piercing 1090 | . . . . . 1090 . Highest Corruption 1 | . . . . . 1 1 Average Corruption 1 | . . . . . 1 1 Corruption Purged . | . . . . . . . Corruption Blocked . | . . . . . . . Effects 3 | . . . . . 2 1 Matter Fused 2 | . . . . . 2 . Heat Flow Errors 1 | . . . . . . 1 Overload Shots . | . . . . . . . Overflow Damage 2560 | . . 88 860 279 1083 250 Projectiles . | . . . . . . . Explosions . | . . . . . . . Melee 2560 | . . 88 860 279 1083 250 Knockbacks 17 | . . 1 4 2 10 . Impact 17 | . . 1 4 2 10 . Kinetic . | . . . . . . . Secondary . | . . . . . . . Self-Inflicted Damage . | . . . . . . . Shots . | . . . . . . . Rammed . | . . . . . . . Targets Rammed . | . . . . . . . Kicked . | . . . . . . . Crushed . | . . . . . . . Highest Temperature 171 | . . . 15 . 15 171 Average Temperature 75 | . . . 7 . 9 93 Received Heat Transfer 564 | . 6 87 354 . 108 9 Siege Activations . | . . . . . . . Martial Activations . | . . . . . . . Shielding Activations . | . . . . . . . Robots Disrupted . | . . . . . . . Combat Hostiles . | . . . . . . . Robots Corrupted 29 | . . 4 15 2 7 1 Combat Hostiles 21 | . . 4 10 2 5 . Parts Fried 45 | . . 3 25 5 10 2 Impact Corruptions 85 | . . 4 40 9 27 5 Robots Melted . | . . . . . . . Combat Hostiles . | . . . . . . . Parts Melted . | . . . . . . . Heat Transferred . | . . . . . . . Parts Sabotaged . | . . . . . . . Parts Stolen . | . . . . . . . Parts Stripped . | . . . . . . . Power Chain Reactions . | . . . . . . . Alert | -11 -10 -10 -9 -9 -8 -8 ------- Run | Yrd Mat Min Mat Min Mat Sto Maximum Alert Level 2 | . . . 2 1 2 . Low Security (%) 58 | 100 100 100 37 38 30 100 Level 1 34 | . . . 44 61 66 . Level 2 6 | . . . 18 . 3 . Level 3 . | . . . . . . . Level 4 . | . . . . . . . Level 5 . | . . . . . . . High Security . | . . . . . . . Max Security . | . . . . . . . Peak Influence 460 | . 53 110 460 243 404 199 Initial 151 | . . . 20 151 70 150 Average 162 | . 6 56 231 203 255 170 Influence Increases 2151 | . 89 202 924 142 725 69 Destroy 0b10 Robot/C 1160 | . . 140 500 120 380 20 Destroy 0b10 Robot/NC 120 | . . . 55 . 55 10 Destroy Leader 314 | . . 30 138 20 122 4 Successful Hack 70 | . 29 . 8 . 29 4 Disable Machine 15 | . . . . . . 15 Destroy Structure 22 | . . 2 13 2 4 1 Partial Spotted 195 | . 15 . 90 . 75 15 Lose Combat Pursuer 255 | . 45 30 120 . 60 . Influence Decreases 1962 | . 89 150 587 348 551 237 Entered New Map 590 | . . . 32 238 113 207 Time Decay 1042 | . 89 150 385 110 278 30 Lost Part 20 | . . . 10 . 10 . Lost Ally 10 | . . . 10 . . . Purge Threat 300 | . . . 150 . 150 . Squads Dispatched 3 | . 1 . . 1 1 . Investigation 2 | . . . . 1 1 . Extermination . | . . . . . . . Reinforcement 1 | . 1 . . . . . Assault . | . . . . . . . Garrison . | . . . . . . . Intercept . | . . . . . . . Searches Triggered . | . . . . . . . Construction Impeded . | . . . . . . . Haulers Reinforced . | . . . . . . . Active Scanning Responses . | . . . . . . . Cargo Convoy Interrupts . | . . . . . . . Stealth | -11 -10 -10 -9 -9 -8 -8 --------- Run | Yrd Mat Min Mat Min Mat Sto Distress Signals 7 | . 1 . 2 1 3 . Communications Jammed . | . . . . . . . Distress Signals . | . . . . . . . Times Spotted 94 | . 7 9 40 10 27 1 Peak Tracking Total 13 | . 3 3 7 13 4 1 Tactical Retreats 11 | . 1 1 5 2 2 . Traps | -11 -10 -10 -9 -9 -8 -8 ------- Run | Yrd Mat Min Mat Min Mat Sto Traps Triggered 3 | . 1 . . . 1 1 Indirectly . | . . . . . . . Trap Hack Attempts . | . . . . . . . Triggered . | . . . . . . . Disarmed . | . . . . . . . Reprogrammed . | . . . . . . . Reused . | . . . . . . . Traps Extracted . | . . . . . . . Installed . | . . . . . . . Triggered . | . . . . . . . Machines | -11 -10 -10 -9 -9 -8 -8 ---------- Run | Yrd Mat Min Mat Min Mat Sto Machines Disabled 1 | . . . . . . 1 Max in Single Turn 1 | . . . . . . 1 Machines Repaired . | . . . . . . . Machines Dismantled . | . . . . . . . Machines Sabotaged . | . . . . . . . Overloaded Fab Kills . | . . . . . . . Hacking | -11 -10 -10 -9 -9 -8 -8 --------- Run | Yrd Mat Min Mat Min Mat Sto Machines Accessed 34 | . 7 1 13 2 9 2 Terminals 28 | . 7 . 12 . 7 2 Fabricators . | . . . . . . . Repair Stations . | . . . . . . . Recycling Units . | . . . . . . . Scanalyzers 2 | . . . 1 . 1 . Garrison Access 1 | . . . . . 1 . Total Hacks 150 | . 35 1 50 2 49 13 Successful 88 | . 19 1 34 2 26 6 Failed 61 | . 16 . 15 . 23 7 Catastrophic 2 | . . . 1 . . 1 Database Lockouts 1 | . . . 1 . . . Manual 108 | . 25 . 39 . 34 10 Terminals 135 | . 35 . 46 . 41 13 Fabricators . | . . . . . . . Repair Stations . | . . . . . . . Recycling Units . | . . . . . . . Scanalyzers 10 | . . . 4 . 6 . Garrison Access 2 | . . . . . 2 . Terminal Hacks 37 | . 11 1 14 2 7 2 Robot Analysis 1 | . 1 . . . . . Prototype ID Bank 6 | . 5 . . . 1 . Open Door 3 | . . 1 . 2 . . Branch Access Points 4 | . 1 . 2 . 1 . Terminal Index 3 | . 1 . 1 . 1 . Scanalyzer Index 1 | . . . . . 1 . Alert Level 5 | . . . 4 . 1 . Unreport Threat 2 | . . . 1 . 1 . Hauler Manifests 4 | . 1 . 2 . . 1 Registered Components 2 | . 1 . 1 . . . Zone Layout 6 | . 1 . 3 . 1 1 Fabricator Hacks . | . . . . . . . Repair Station Hacks . | . . . . . . . Recycling Unit Hacks . | . . . . . . . Scanalyzer 9 | . . . 3 . 6 . Retrieve Study 9 | . . . 3 . 6 . Garrison Access Hacks . | . . . . . . . Unauthorized Hacks 42 | . 8 . 17 . 13 4 Terminals 40 | . 8 . 17 . 11 4 Track 3 | . . . 2 . . 1 Assimilate 1 | . . . 1 . . . Botnet 10 | . 3 . 3 . 3 1 Disrupt 2 | . . . 1 . 1 . Operators 3 | . . . 1 . 1 1 Skim 21 | . 5 . 9 . 6 1 Fabricators . | . . . . . . . Repair Stations . | . . . . . . . Recycling Units . | . . . . . . . Scanalyzers . | . . . . . . . Garrison Access 2 | . . . . . 2 . Reprogram 1 | . . . . . 1 . Watchers 1 | . . . . . 1 . Data Cores Recovered . | . . . . . . . Used . | . . . . . . . Hacking Detections 26 | . 7 . 10 . 7 2 Full Trace Events 1 | . . . . . 1 . Feedback Events . | . . . . . . . Feedback Blocked . | . . . . . . . Robot Schematics Acquired . | . . . . . . . Robots Built . | . . . . . . . Authchips . | . . . . . . . Time . | . . . . . . . Total Robot Build Rating . | . . . . . . . Part Schematics Acquired . | . . . . . . . Parts Built . | . . . . . . . Authchips . | . . . . . . . Time . | . . . . . . . Total Part Build Rating . | . . . . . . . Part Studies Acquired 7 | . . . 3 . 4 . Parts Repaired . | . . . . . . . Time . | . . . . . . . Parts Recycled . | . . . . . . . Recycled Matter . | . . . . . . . Retrieved Matter . | . . . . . . . Retrieved Components . | . . . . . . . Parts Scanalyzed . | . . . . . . . Part Schematics Acquired . | . . . . . . . Parts Damaged . | . . . . . . . Bothacking | -11 -10 -10 -9 -9 -8 -8 ------------ Run | Yrd Mat Min Mat Min Mat Sto Used RIF Installer . | . . . . . . . Robots Hacked . | . . . . . . . Non-combat . | . . . . . . . Combat . | . . . . . . . Robot Hacks Applied . | . . . . . . . Relay Couplers Released . | . . . . . . . Fabnet Peak Effective % . | . . . . . . . Robots Rewired . | . . . . . . . Allies Hacked . | . . . . . . . Hacks Repelled . | . . . . . . . Allies | -11 -10 -10 -9 -9 -8 -8 -------- Run | Yrd Mat Min Mat Min Mat Sto Total Allies 2 | . . 1 1 . . . Largest Group 1 | . . 1 1 . . . Highest-Rated Group 31 | . . 31 31 . . . Highest-Rated Ally 31 | . . 31 31 . . . Total Orders . | . . . . . . . Ally Attacks 3 | . . . 3 . . . Total Damage 44 | . . . 44 . . . Kills . | . . . . . . . Allies Corrupted . | . . . . . . . Allies Melted . | . . . . . . . Intel | -11 -10 -10 -9 -9 -8 -8 ------- Run | Yrd Mat Min Mat Min Mat Sto Active Infowar (turns) 2811 | . 493 397 1016 232 612 61 Sensors 2 | . . 2 . . . . Seismic 2809 | . 493 395 1016 232 612 61 Robot Analysis Total 1 | . 1 . . . . . Derelict Logs Recovered 2 | . . 1 . 1 . . Drone Launches . | . . . . . . . Drone Recoveries . | . . . . . . . Exploration | -11 -10 -10 -9 -9 -8 -8 ------------- Run | Yrd Mat Min Mat Min Mat Sto Turns Passed 2922 | 18 586 397 1016 232 612 61 Spaces Moved 4681 | 35 599 654 1591 570 1130 102 Core 1016 | 35 599 269 113 . . . Treads . | . . . . . . . Legs . | . . . . . . . Wheels . | . . . . . . . Hover . | . . . . . . . Flight 3665 | . . 385 1478 570 1130 102 Fastest Speed 29 | 50 50 40 29 29 30 29 Average Speed 36 | 50 50 44 36 29 30 31 Slowest Speed 102 | 50 50 50 50 30 30 102 Overloaded Moves . | . . . . . . . Propulsion Burnouts . | . . . . . . . Robots Hopped 7 | . . . 5 . 2 . Potential Cave-ins . | . . . . . . . Cave-ins Triggered . | . . . . . . . Exploration Rate (%) 66 | 3 91 97 94 90 68 21 Regions Visited 6 Branch Regions 3 Pre-discovered Areas 2 | . . . 2 . . . Known Exits Taken 5 | . 1 1 1 1 1 . Unknown Exits Taken 1 | 1 . . . . . . Scrap Searched 2 | . . 1 . 1 . . Spaces Dug 23 | . . 2 14 2 4 1 Terrain Destroyed 23 | . . 2 14 2 4 1 Melee 23 | . . 2 14 2 4 1 Projectile . | . . . . . . . AOE . | . . . . . . . Terrain Rammed . | . . . . . . . Walls Destroyed . | . . . . . . . Machines Disabled . | . . . . . . . Actions | -11 -10 -10 -9 -9 -8 -8 --------- Run | Yrd Mat Min Mat Min Mat Sto Total 5511 | 34 882 720 1866 598 1295 116 Wait 555 | . 280 33 159 3 80 . Move 4661 | 34 598 653 1580 569 1125 102 Hop 7 | . . . 5 . 2 . Pick Up 2 | . . . . 1 1 . Fast Attach 21 | . 2 2 8 2 5 2 Attach 2 | . . . . . 1 1 Detach . | . . . . . . . Swap 18 | . . 1 6 2 6 3 Drop 16 | . . 1 5 2 6 2 Fire . | . . . . . . . Melee 176 | . 1 23 80 14 52 6 Ram . | . . . . . . . Kick . | . . . . . . . Crush . | . . . . . . . Escape Stasis . | . . . . . . . Rewire . | . . . . . . . Trap . | . . . . . . . Miscellaneous 53 | . 1 7 23 5 17 . Route ------- -11/Scrapyard -10/Materials (discovered 6 exits: *Mat x3 / *Min x2 / Sub) -10/Mines (discovered 3 exits: *Mat x2 / [*Exi]) -9/Materials (discovered 4 exits: *Mat x3 / *Min) -9/Mines (discovered 3 exits: *Mat x2 / [*Zio]) -8/Materials (discovered 4 exits: *Fac x3 / *Sto) -8/Storage (discovered 2 exits: Fac / Rec) History --------- Turn | Location | Event 6 | -11/Scrapyard | Discovered new exit (range 16) 19 | -11/Scrapyard | Entered Materials 20 | -10/Materials | Met a group of wandering Federalists 58 | -10/Materials | Discovered new exit (range 15) 64 | -10/Materials | Identified exit to Mines 178 | -10/Materials | Discovered new exit (range 8) 228 | -10/Materials | Discovered new exit (range 15) 255 | -10/Materials | Identified exit to Materials 300 | -10/Materials | Build established: Mutant 326 | -10/Materials | Identified exit to Subcaves 385 | -10/Materials | Learned 2 Storage zone layouts 506 | -10/Materials | Learned Storage terminal intel 594 | -10/Materials | Loaded intel: 8 terminal locations 605 | -10/Materials | Entered Mines 619 | -10/Mines | Deemed a non-threat by the Exiles lab entrance 619 | -10/Mines | Discovered new exit (range 5) 632 | -10/Mines | Learned Materials trap positions 722 | -10/Mines | Met a Derelict bent on vengeance 836 | -10/Mines | Found a damaged Exp. Sensor Array with a note attached 837 | -10/Mines | Found Prototype Device 837 | -10/Mines | Identified Exp. Sensor Array 853 | -10/Mines | Discovered exit to Materials (range 10) 910 | -10/Mines | Found the Drone Emporium 950 | -10/Mines | Received a Mining Laser from a helpful Derelict 1002 | -10/Mines | Entered Materials 1002 | -9/Materials | Accompanied by 1 ally 1003 | -9/Materials | Loaded intel: 8 trap records 1004 | -9/Materials | Reached level 2 1131 | -9/Materials | Discovered new exit (range 8) 1169 | -9/Materials | Identified exit to Mines 1223 | -9/Materials | Loaded intel: 2 recycling unit locations 1259 | -9/Materials | Core integrity fell below 50% 1260 | -9/Materials | Reached level 3 1267 | -9/Materials | Learned Storage emergency access door positions 1302 | -9/Materials | Identified exit to Materials 1341 | -9/Materials | Learned 2 Storage zone layouts 1366 | -9/Materials | Upgraded with Propulsion slot (x1) 1373 | -9/Materials | Learned location of Recycling (-8) 1385 | -9/Materials | Upgraded with Weapon slot (x3) 1542 | -9/Materials | Reached level 4 1580 | -9/Materials | Core integrity fell below 20% 1589 | -9/Materials | Upgraded with Propulsion slot (x1) 1664 | -9/Materials | Central database locked down 1923 | -9/Materials | Build established: Sprinter 1963 | -9/Materials | Reached level 5 2010 | -9/Materials | Upgraded with Weapon slot (x1) 2018 | -9/Materials | Entered Mines 2054 | -9/Mines | Met a Derelict shopkeep closing up shop 2057 | -9/Mines | Upgraded with Utility slot (x1) 2065 | -9/Mines | Assembled infested the area 2070 | -9/Mines | Assisted by a Guerilla fighting off Assembled 2074 | -9/Mines | Learned Materials security intel 2150 | -9/Mines | A weapon hastily lodged in a ceiling crevice suddenly fell to the ground 2171 | -9/Mines | Met a Derelict who couldn't figure out how to use a Trap Extractor 2203 | -9/Mines | A Derelict revealed a hidden shortcut to a safe place 2242 | -9/Mines | Received a Rocket Launcher from a helpful Derelict 2250 | -9/Mines | Entered Materials 2251 | -8/Materials | Identified exit to Storage 2251 | -8/Materials | Core integrity fell below 50% 2252 | -8/Materials | Reached level 6 2253 | -8/Materials | Upgraded with Utility slot (x1) 2335 | -8/Materials | Reached level 7 2487 | -8/Materials | Discovered new exit (range 11) 2720 | -8/Materials | Core integrity fell below 20% 2723 | -8/Materials | Reached level 8 2791 | -8/Materials | Discovered new exit (range 6) 2819 | -8/Materials | Identified exit to Factory 2862 | -8/Materials | Entered Storage 2864 | -8/Storage | Identified exit to Recycling 2864 | -8/Storage | Reached level 9 2866 | -8/Storage | Loaded intel: 10 terminal locations 2872 | -8/Storage | Upgraded with Utility slot (x1) 2876 | -8/Storage | Upgraded with Utility slot (x1) 2923 | -8/Storage | Destroyed by Explosive Trap Last Messages --------------- 02907_ Acquired Prototype Flight Unit. 02907_ Identified Imp. VTOL Module. 02911_ Upgraded: Mass Support (+5) 02911_ Dropped Xenon Bombardment Thruster. 02914_ Acquired Cesium-ion Thruster+. 02916_ Dropped Imp. Ion Engine+. 02919_ Sneak attack on A-02 Transporter. 02919_ A-02 Transporter suffers critical hit (Smash). 02919_ Destroyed Transport Network Coupler. 02919_ Destroyed Lgt. Treads. 02919_ A-02 Transporter system corrupted by crushing effect. 02919_ Sneak attack on A-02 Transporter. 02919_ Flail+ follow-up attack on A-02 Transporter. 02919_ Destroyed Weight Redist. System. 02919_ A-02 Transporter system corrupted by crushing effect. 02919_ Ion Engine fried. 02919_ A-02 Transporter destroyed. 02923_ Acquired 39 matter. 02923_ Triggered Explosive Trap. 02923_ An explosion rips through the floor. Map ----- +----------------------------------------------------+ | ????????????? + """""" + + """ ##??# | | ?????????????##### " " # # #??# | | ?????????????????# " " # # """ ##?####### | | ?????????????##### """""" # # """ #??# | | ????????????? + # # """ #??#""" | | ?????????????############### # #??#""" | | ???????????????????????????#########+#######""" | | ?????????????????????????????????# # | | ?????????????????????????????????# #""" | | ?????????????????????????????????# #""" | | ?????????????????????#######?????# #""" | | ?????????????######### #????########+### | | ????????????? + ###### ####?# #?######+ | | ?????????????######### # #?# #??????# | | ?????????????????????# # ### ##?????# | | ?????????????????????# # # #?????# | | ?????????????######### # + #?????# | | ????????????? ## """# """ """ # ####### | | ????????????? ## """# """ """ # ####### | | ?????????????"""" ## """# """ """ ## ### " + | | ???????????#?"*["" ## """# ## ### " # | | ???????????# "=*""" ## """############ ### " # | | ???????????# """=[" ## #??????????# ######T# | | ???????????# ""* " ######+############ ######## | | ???????????# " "" + !! u! a | | ?????###???# ####!@ | | ?????# #####+#+###?# ####+#####?###+######## | | ?????# ### # #? #??? | | ?????#% / """ #? ##?? | | ?????# =[[####### """ #? #?? | | "#???# ########%##?????#= """ #?""" ##?? | | "#???## ##??????#[#??????# #?""" #??? | | "###### #########+####???# """ #?""" #??? | | ## # #???# """ #?""" #??? | | ## # % #???# """ #? #??? | | """ ## + """""% #???# #?#########??? | | """ ## # """"" #???##""T""###????????????? | | """ ## # """"" #????#"""""#??????????????? | | ## ##############????#######??????????????? | | ## ## ! ##??????????????????????????? | | ## ## #???????????????????????????? | | #+#### # ##??????????????????????????? | | # """ """ T#??????????????????????????? | | " + """ """ ##??????????????????????????? | | # """ """ #???????????????????????????? | | ###### # #???????????????????????????? | | ?????####### #???????????????????????????? | | ???????????###########???????????????????????????? | | | | | +----------------------------------------------------+ Best States ------------- Heat Dissipation 25 Energy Generation 19 Energy Capacity 280 Matter Stores 300 Matter Capacity 300 Sight Range 16 Terrain Scan Density 10 Evasion (%) 72 Melee Accuracy 12 Force Boost 20 Offensive Hacking 5 Defensive Hacking 10 Item Schematics ----------------- None Robot Schematics ------------------ None Fabricated ------------ Nothing Repaired ---------- Nothing Studied --------- Flight Unit | -9/Materials | Hacked Hammer | -9/Materials | Hacked Lgt. Ion Engine | -9/Materials | Hacked Flail | -8/Materials | Hacked Cesium-ion Thruster | -8/Materials | Hacked Imp. Ion Engine | -8/Materials | Hacked Great Maul | -8/Materials | Hacked Alien Tech Used ----------------- None Achievements -------------- None Challenges ------------ None RPGLIKE | -11 -10 -10 -9 -9 -8 -8 --------- Run | Yrd Mat Min Mat Min Mat Sto Levels Raised 8 | . . . 4 . 3 1 XP Earned 15385 | 3000 65 1350 4619 1200 3976 1175 XP Spent 14150 | . 900 2000 5200 750 1700 3600 Upgrades 23 | . 3 5 7 2 3 3 Propulsion Slot 2 | . . . 2 . . . Utility Slot 4 | . . . . 1 1 2 Weapon Slot 4 | . . . 4 . . . Energy Generation 1 | . . . . . 1 . Mass Support 3 | . . . 1 . 1 1 Inventory Capacity 1 | . . . . 1 . . Melee Accuracy 5 | . . 5 . . . . Hack Attack % 1 | . 1 . . . . . Hack Defense % 2 | . 2 . . . . . Protomatter Created 404 | . . 65 176 27 136 . Integrity Restored 1112 | . 11 126 528 69 378 . Core 1106 | . 11 120 528 69 378 . Parts 6 | . . 6 . . . . Protomatter Decayed 264 | . 163 23 . 33 45 . Game ------ Seed ArmorFusionJoltstriker Manual? 0 Play Time 00:48:08 Cumulative 222.5 hours Start 2026.03.03 @ 13:19:32 End 2026.03.03 @ 15:02:26 Sessions 3 Manual Loads 0 Difficulty Rogue Special Mode Winter2019/RPGLIKE Game No. 217 Rogue 217 Adventurer 0 Explorer 0 Win Type - Total 15 Types 11/0/1/1/0/0/1/0/0/1 Lore% 70 Gallery% 58 Achievement% 54 Wizard Run 0 Options --------- Layout 0 ASCII 0 Keyboard 0 Movement Numpad Keybinds 0 Fullscreen 1 Font 18/SmallcapsGlow Map View 76x50 Zoom Use 0% Tactical HUD 1 Map Filters NONE Filters NONE Steam 1 RUN: b1d87fe3-9583-4e91-82dc-42ca33ccc5ca